bitfinex-derivatives/quotes_BTCF0:USTF0_20251109
["timestamp","ask_amount","ask_price","bid_price","bid_amount"]
[1762698850273,0.36092115,103710.0,103700.0,0.63992018]
[1762698850462,0.00012115,103710.0,103700.0,1.00072018]
[1762698850778,0.00012115,103710.0,103700.0,1.03465958]
[1762698851172,0.00012115,103710.0,103700.0,1.78202171]
[1762698851371,0.00014419,103720.0,103710.0,0.41378]
[1762698851571,0.02164627,103730.0,103720.0,0.53444]
[1762698851876,0.94797016,103760.0,103750.0,0.41378]
[1762698851877,1.13413626,103760.0,103750.0,0.41378]
[1762698852376,0.78069626,103760.0,103750.0,0.41378]
[1762698852769,0.02126626,103760.0,103750.0,0.51016089]
[1762698852971,0.02126626,103760.0,103750.0,0.90476215]
[1762698853269,0.02126626,103760.0,103750.0,0.92186892]
[1762698853468,0.02126626,103760.0,103750.0,1.25923652]
[1762698853668,0.02126626,103760.0,103750.0,1.90820864]
[1762698853868,0.02126626,103760.0,103750.0,1.66724864]
[1762698854164,0.02126626,103760.0,103750.0,1.61634061]
[1762698854480,0.02126626,103760.0,103750.0,1.68426156]
[1762698854873,0.00014419,103770.0,103760.0,0.53444]
[1762698855064,0.00014419,103770.0,103760.0,0.97969855]
[1762698855374,0.00014419,103770.0,103760.0,0.94591513]
[1762698855568,0.00014419,103770.0,103760.0,1.13868513]
[1762698856375,0.00014419,103770.0,103760.0,1.30940129]
[1762698856575,0.00014419,103770.0,103760.0,1.47372064]
[1762698857170,0.00014419,103770.0,103760.0,1.23280064]
[1762698857474,0.00014419,103770.0,103760.0,1.30940129]
[1762698857669,0.00014419,103770.0,103760.0,1.06848129]
[1762698858172,0.00014419,103770.0,103760.0,1.16487969]
[1762698858477,0.00014419,103770.0,103760.0,1.06848129]
[1762698858671,0.07337876,103790.0,103760.0,1.06848129]
[1762698858870,0.47200876,103790.0,103780.0,0.03382776]
[1762698859277,0.83280876,103790.0,103780.0,0.03382776]
[1762698859982,0.6110698,103780.0,103770.0,0.03397195]
[1762698860766,0.9718698,103780.0,103770.0,0.03397195]
[1762698861281,0.9718698,103780.0,103770.0,0.00014419]
[1762698862079,0.39863,103790.0,103780.0,0.53444]
[1762698862280,0.39863,103790.0,103780.0,0.56826776]
[1762698862877,0.4950005,103790.0,103780.0,0.44760776]
[1762698863278,0.8558005,103790.0,103780.0,0.44760776]
[1762698863479,0.8558005,103790.0,103780.0,0.03382776]
[1762698863769,0.4950098,103780.0,103770.0,0.4984936]
[1762698863976,0.8558098,103780.0,103770.0,0.2975236]
[1762698864177,0.82110141,103780.0,103770.0,0.03397195]
[1762698864382,0.93716141,103780.0,103770.0,0.00014419]
[1762698864573,0.8558098,103780.0,103770.0,0.21295419]
[1762698864775,0.75943,103780.0,103770.0,0.00014419]
[1762698864977,0.75943,103780.0,103770.0,0.41392419]
[1762698865283,0.75943,103790.0,103780.0,0.53444]
[1762698865978,0.75943,103790.0,103780.0,0.56826776]
[1762698868770,0.20457,103790.0,103780.0,0.56826776]
[1762698868974,0.75918989,103800.0,103790.0,0.38119]
[1762698869176,0.85555109,103800.0,103790.0,0.38119]
[1762698869380,0.83436539,103800.0,103790.0,0.38119]
[1762698869784,0.37720419,103800.0,103790.0,0.38119]
[1762698870083,0.4734305,103790.0,103780.0,0.73471941]
[1762698870277,0.8342305,103790.0,103780.0,0.53567776]
[1762698870481,0.8342305,103790.0,103780.0,0.41501776]
[1762698870682,0.8342305,103790.0,103780.0,0.03382776]
[1762698870980,0.4734398,103780.0,103770.0,0.03397195]
[1762698871276,0.9444698,103780.0,103770.0,0.03397195]
[1762698871482,0.73786,103790.0,103780.0,0.48769]
[1762698871686,0.37706,103790.0,103780.0,0.93309202]
[1762698871880,0.4734305,103790.0,103780.0,0.03386037]
[1762698872075,0.37706,103780.0,103770.0,0.08474621]
[1762698872274,0.73786,103780.0,103770.0,0.46593848]
[1762698872477,0.8342398,103780.0,103770.0,0.51154986]
[1762698872676,0.8342398,103780.0,103770.0,0.24127683]
[1762698872881,0.9444698,103780.0,103770.0,0.00014419]
[1762698873076,0.5836884,103760.0,103750.0,0.03396139]
[1762698873276,1.3052884,103760.0,103750.0,0.03396139]
[1762698873476,0.473477,103740.0,103730.0,0.08460429]
[1762698873683,0.4734863,103730.0,103720.0,0.03386264]
[1762698874278,0.37706,103720.0,103710.0,0.41519683]
[1762698874582,0.37713874,103720.0,103710.0,0.41519683]
[1762698874784,0.73793874,103720.0,103710.0,0.41519683]
[1762698874984,7.874e-05,103720.0,103710.0,0.77599683]
[1762698875371,7.874e-05,103720.0,103710.0,0.96885979]
[1762698875576,7.874e-05,103720.0,103710.0,0.93499715]
[1762698875782,0.00014419,103740.0,103730.0,0.20727]
[1762698875980,0.00014419,103740.0,103730.0,0.77587767]
[1762698876780,0.00020273,103740.0,103730.0,0.77587767]
[1762698876986,0.00020273,103740.0,103730.0,0.41507767]
[1762698876987,0.47367973,103740.0,103730.0,0.41507767]
[1762698877283,0.37726273,103740.0,103730.0,0.41507767]
[1762698877880,0.83447973,103740.0,103730.0,0.03388767]
[1762698878076,0.89899973,103740.0,103720.0,0.08471918]
[1762698878283,0.4734863,103730.0,103720.0,0.08471918]
[1762698878785,0.4734863,103730.0,103720.0,0.03388767]
[1762698878786,0.8342863,103730.0,103720.0,0.03388767]
[1762698878980,0.37706,103720.0,103710.0,0.24130186]
[1762698879291,0.73786,103720.0,103710.0,0.24130186]
[1762698879684,0.4734955,103720.0,103710.0,0.24130186]
[1762698879874,0.4734955,103720.0,103710.0,0.03403186]
[1762698879875,0.8342955,103720.0,103710.0,0.03403186]
[1762698880081,0.73786,103720.0,103710.0,0.03403186]
[1762698881073,0.73786,103720.0,103710.0,0.24130186]
[1762698881584,0.73786,103720.0,103710.0,0.41522186]
[1762698881984,0.8342955,103720.0,103710.0,0.41522186]
[1762698882185,0.8342955,103720.0,103710.0,0.24130186]
[1762698882386,0.8342955,103720.0,103710.0,0.03403186]
[1762698882782,0.5837441,103700.0,103690.0,0.05083151]
[1762698882999,0.4735235,103690.0,103680.0,0.05102151]
[1762698883287,0.4735235,103690.0,103680.0,0.00012369]
[1762698883686,0.37706,103690.0,103680.0,0.51328425]
[1762698883888,0.37706,103690.0,103680.0,0.38131369]
[1762698884086,0.37706,103690.0,103680.0,0.51324724]
[1762698884285,0.37726273,103700.0,103690.0,0.38119]
[1762698884494,0.4735234,103690.0,103680.0,0.02552795]
[1762698884790,0.37706,103690.0,103680.0,0.12197391]
[1762698884991,0.4735234,103690.0,103680.0,0.12197391]
[1762698885191,0.4735234,103690.0,103680.0,0.00012369]
[1762698885490,0.8266034,103690.0,103680.0,0.00012369]
[1762698885792,0.5836427,103680.0,103670.0,0.00014419]
[1762698886088,0.4735327,103680.0,103670.0,0.00014419]
[1762698886296,1.09866,103680.0,103670.0,0.00014419]
[1762698886593,1.45174,103680.0,103670.0,0.00014419]
[1762698886792,1.54832063,103680.0,103670.0,0.00014419]
[1762698887093,1.19524063,103680.0,103670.0,0.00014419]
[1762698887289,1.27219063,103680.0,103670.0,0.00014419]
[1762698888391,0.4491414,103660.0,103650.0,0.02540426]
[1762698888597,0.0965007,103650.0,103630.0,8.198e-05]
[1762698888784,0.7216,103640.0,103630.0,0.34324198]
[1762698888982,0.3608,103640.0,103630.0,0.34324198]
[1762698889184,0.45739728,103650.0,103640.0,0.44452]
[1762698889391,0.09651,103640.0,103630.0,0.17181617]
[1762698889584,0.3608,103640.0,103630.0,0.00022617]
[1762698889787,0.45731,103640.0,103630.0,0.00022617]
[1762698890188,0.3608,103640.0,103630.0,0.00022617]
[1762698890891,0.3608,103640.0,103630.0,0.34338617]
[1762698891597,0.45731,103640.0,103630.0,0.00022617]
[1762698892094,0.3608,103640.0,103630.0,0.34338617]
[1762698894200,0.45731,103640.0,103630.0,0.31838617]
[1762698894988,0.45731,103640.0,103630.0,0.14681617]
[1762698895189,0.45731,103640.0,103620.0,0.10136]
[1762698895190,0.4573148,103640.0,103620.0,0.44452]
[1762698895497,0.4573193,103630.0,103620.0,0.44452]
[1762698896086,0.3608,103630.0,103620.0,0.44452]
[1762698896293,0.36094419,103640.0,103630.0,0.34384]
[1762698897199,0.45745419,103640.0,103630.0,0.34384]
[1762698897392,0.45745419,103640.0,103600.0,0.2859]
[1762698897393,0.0965351,103620.0,103600.0,0.2859]
[1762698897709,0.3608,103610.0,103600.0,0.45815]
[1762698897900,0.36090675,103610.0,103600.0,0.45815]
[1762698899103,0.00010675,103610.0,103600.0,0.55467043]
[1762698899404,0.36090675,103610.0,103600.0,0.55467043]
[1762698899902,0.45744465,103610.0,103600.0,0.55467043]
[1762698900097,0.45744465,103610.0,103600.0,0.45815]
[1762698900302,0.36090675,103610.0,103600.0,0.45815]
[1762698900799,0.45744465,103610.0,103600.0,0.45815]
[1762698901000,0.36090675,103610.0,103600.0,0.45815]
[1762698901196,0.00010675,103610.0,103600.0,1.15467043]
[1762698901391,0.00010675,103610.0,103600.0,1.61201763]
[1762698901802,0.00014419,103620.0,103610.0,0.35165]
[1762698902302,0.00014419,103620.0,103610.0,0.4481877]
[1762698902505,0.00014419,103620.0,103610.0,0.90550813]
[1762698902903,0.00014419,103620.0,103610.0,0.44817043]
[1762698903398,0.00014419,103620.0,103610.0,0.80897043]
[1762698903593,0.00023214,103620.0,103610.0,0.90550813]
[1762698903794,0.00023214,103620.0,103610.0,0.80897043]
[1762698904198,0.00023214,103620.0,103610.0,0.90550813]
[1762698904400,0.00023214,103620.0,103610.0,0.80897043]
[1762698905100,0.00023214,103620.0,103610.0,0.90550813]
[1762698905999,0.00023214,103620.0,103610.0,0.80897043]
[1762698906502,0.00023214,103620.0,103610.0,0.90550813]
[1762698906706,0.00023214,103620.0,103610.0,0.80897043]
[1762698907502,0.00023214,103620.0,103610.0,0.90550813]
[1762698907898,0.3608,103640.0,103610.0,0.90550813]
[1762698908104,0.4573005,103650.0,103640.0,0.45811]
[1762698908300,0.38787885,103650.0,103640.0,0.45811]
[1762698908704,0.3608,103650.0,103640.0,0.45811]
[1762698909302,0.4573005,103650.0,103640.0,0.45811]
[1762698909899,0.4573004,103650.0,103640.0,0.45811]
[1762698910106,0.3608,103650.0,103640.0,0.45811]
[1762698912007,0.0965097,103640.0,103630.0,0.35179419]
[1762698912207,0.4843555,103640.0,103630.0,0.35179419]
[1762698913705,0.4843555,103640.0,103630.0,0.00014419]
[1762698914014,0.4843555,103640.0,103630.0,0.35179419]
[1762698914215,0.3878458,103640.0,103630.0,0.35179419]
[1762698914518,0.0270458,103640.0,103630.0,0.35179419]
[1762698914722,0.4573004,103650.0,103640.0,0.45811]
[1762698915017,0.48435334,103650.0,103640.0,0.45811]
[1762698915214,0.5186535,103650.0,103640.0,0.45811]
[1762698915511,0.48435334,103650.0,103640.0,0.45811]
[1762698915708,0.5186535,103650.0,103640.0,0.45811]
[1762698915907,0.38785294,103650.0,103640.0,0.45811]
[1762698916309,0.02705294,103650.0,103640.0,0.65110298]
[1762698916511,2.94e-06,103650.0,103640.0,0.55459318]
[1762698916706,0.36094419,103660.0,103650.0,0.35165]
[1762698917415,0.36094419,103660.0,103650.0,0.44813318]
[1762698917708,0.00014419,103660.0,103650.0,0.44813318]
[1762698918099,0.36094419,103660.0,103650.0,0.44813318]
[1762698918507,0.45743529,103660.0,103650.0,0.44813318]
[1762698918704,0.44716896,103660.0,103650.0,0.35165]
[1762698919105,0.1209805,103650.0,103640.0,0.45811]
[1762698919299,0.4817805,103650.0,103640.0,0.45811]
[1762698919705,0.4817805,103650.0,103640.0,0.10646]
[1762698919911,0.1209898,103640.0,103630.0,0.00014419]
[1762698920216,0.51608996,103640.0,103630.0,0.00014419]
[1762698921710,0.1210121,103620.0,103610.0,0.35165]
[1762698921912,0.74608,103620.0,103610.0,0.35165]
[1762698922115,0.7216,103620.0,103610.0,0.35165]
[1762698922513,0.457327,103630.0,103620.0,0.45811]
[1762698922711,0.44704776,103630.0,103620.0,0.45811]
[1762698922909,0.3608,103630.0,103620.0,0.45811]
[1762698923210,0.4817991,103630.0,103620.0,0.45811]
[1762698923715,0.4817991,103630.0,103620.0,0.28586]
[1762698924317,0.02448,103620.0,103610.0,0.00014419]
[1762698924617,0.121027,103600.0,103590.0,7.871e-05]
[1762698924817,0.842627,103600.0,103590.0,7.871e-05]
[1762698925217,1.195507,103600.0,103590.0,7.871e-05]
[1762698925608,1.09896,103600.0,103590.0,7.871e-05]
[1762698925813,1.09896,103600.0,103590.0,0.17947871]
[1762698925814,1.195507,103600.0,103590.0,0.17947871]
[1762698926227,1.195507,103600.0,103590.0,7.871e-05]
[1762698926522,0.0965623,103590.0,103570.0,0.33856]
[1762698926712,0.3608,103590.0,103580.0,0.42803]
[1762698926919,0.4573563,103590.0,103580.0,0.42803]
[1762698927316,0.4573629,103590.0,103570.0,0.17757]
[1762698927511,0.4573656,103580.0,103570.0,0.33856]
[1762698927714,0.3608,103580.0,103570.0,0.33856]
[1762698928020,0.4573655,103580.0,103570.0,0.33856]
[1762698928210,0.4573655,103580.0,103570.0,0.17757]
[1762698928415,0.6277369,103580.0,103560.0,0.44502]
[1762698928621,0.4573748,103570.0,103560.0,0.44502]
[1762698928823,0.42267982,103570.0,103560.0,0.44502]
[1762698929321,0.81030158,103570.0,103550.0,0.17757]
[1762698929625,0.4573842,103560.0,103540.0,0.99767]
[1762698929818,0.4573935,103550.0,103540.0,0.79786]
[1762698930117,0.4573935,103550.0,103540.0,0.10646]
[1762698930317,0.71368,103550.0,103530.0,0.33867228]
[1762698930526,0.3608,103540.0,103530.0,0.33867228]
[1762698931025,0.71364,103550.0,103530.0,0.33867228]
[1762698931219,0.4574028,103540.0,103530.0,0.33867228]
[1762698931416,0.3608,103540.0,103530.0,0.00011228]
[1762698931811,0.3608,103540.0,103530.0,0.17768228]
[1762698932221,0.50509118,103540.0,103530.0,0.17768228]
[1762698932422,0.3608,103540.0,103530.0,0.17768228]
[1762698932723,0.4574026,103540.0,103530.0,0.00011228]
[1762698933123,0.4833704,103540.0,103530.0,0.00011228]
[1762698933518,0.4574026,103540.0,103530.0,0.00011228]
[1762698934727,0.43420695,103540.0,103530.0,0.00011228]
[1762698935622,0.43429663,103540.0,103530.0,0.00011228]
[1762698936928,0.33769403,103540.0,103530.0,0.33867228]
[1762698937231,0.78717673,103540.0,103530.0,0.33867228]
[1762698937431,0.43429673,103540.0,103530.0,0.33867228]
[1762698937927,0.78717673,103540.0,103530.0,0.17768228]
[1762698938633,0.78716993,103540.0,103530.0,0.33867228]
[1762698939727,0.69057403,103540.0,103530.0,0.17768228]
[1762698939932,0.78716993,103540.0,103530.0,0.33867228]
[1762698940122,0.33769403,103540.0,103530.0,0.33867228]
[1762698941024,8.968e-05,103540.0,103530.0,0.43525797]
[1762698941626,8.968e-05,103540.0,103530.0,0.33867228]
[1762698942032,8.968e-05,103540.0,103530.0,0.69947228]
[1762698942228,8.968e-05,103540.0,103530.0,0.79605797]
[1762698942728,0.45752789,103560.0,103550.0,0.33856]
[1762698942932,0.0965865,103550.0,103540.0,0.42803]
[1762698943236,0.4573865,103550.0,103540.0,0.42803]
[1762698944330,0.0965958,103540.0,103530.0,0.33867228]
[1762698944830,0.36094419,103560.0,103550.0,0.33856]
[1762698945226,0.0965865,103550.0,103540.0,0.42803]
[1762698945624,0.45752139,103560.0,103550.0,0.33856]
[1762698946128,0.45752139,103560.0,103550.0,0.17757]
[1762698946329,0.45752139,103560.0,103550.0,0.32556]
[1762698947831,0.0965865,103550.0,103540.0,0.23374]
[1762698948031,0.4573865,103550.0,103540.0,0.23374]
[1762698948533,0.4573865,103550.0,103540.0,0.40725827]
[1762698948733,0.3608,103550.0,103540.0,0.38725827]
[1762698948934,0.4573865,103550.0,103540.0,0.38725827]
[1762698950435,0.4573865,103550.0,103540.0,0.42130318]
[1762698950734,0.43419536,103550.0,103540.0,0.42130318]
[1762698952238,0.33760886,103550.0,103540.0,0.39577491]
[1762698952541,0.43419536,103550.0,103540.0,0.44684228]
[1762698953027,0.43419536,103550.0,103540.0,0.39577491]
[1762698953228,0.39940834,103550.0,103540.0,0.39577491]
[1762698953424,0.39940834,103550.0,103540.0,0.44684228]
[1762698953628,0.29940834,103550.0,103540.0,0.44684228]
[1762698953829,0.29940834,103550.0,103540.0,0.15458228]
[1762698954029,0.29940834,103550.0,103540.0,0.10351491]
[1762698954229,0.65208834,103550.0,103540.0,0.03404491]
[1762698954832,0.65204834,103550.0,103540.0,0.41175491]
[1762698955032,0.29940834,103550.0,103540.0,0.41175491]
[1762698955334,0.81016799,103560.0,103550.0,0.29226]
[1762698955539,1.17096799,103560.0,103550.0,0.03426668]
[1762698956139,1.17096799,103560.0,103540.0,0.11971668]
[1762698956140,0.0965865,103550.0,103540.0,0.11971668]
[1762698956344,0.4573865,103550.0,103540.0,0.13651737]
[1762698956542,0.4573865,103550.0,103540.0,0.08545]
[1762698957039,0.0965959,103540.0,103530.0,0.14069228]
[1762698957243,0.4573959,103540.0,103530.0,0.19213486]
[1762698957437,0.4573959,103540.0,103530.0,0.33183486]
[1762698958341,0.8215959,103540.0,103530.0,0.05155486]
[1762698959436,0.8215959,103540.0,103530.0,0.19213486]
[1762698959636,0.8215959,103540.0,103530.0,0.05155486]
[1762698960035,0.8215959,103540.0,103530.0,0.19213486]
[1762698960439,0.8215959,103540.0,103530.0,0.33183486]
[1762698960641,0.4689959,103540.0,103530.0,0.33183486]
[1762698960939,0.1081959,103540.0,103530.0,0.28039228]
[1762698961132,0.4689959,103540.0,103530.0,0.28039228]
[1762698961338,0.4689959,103540.0,103530.0,0.00011228]
[1762698961743,0.4689959,103540.0,103530.0,0.0516356]
[1762698962543,0.0966239,103510.0,103500.0,0.06812982]
[1762698962748,0.0966425,103490.0,103480.0,0.36267]
[1762698963645,0.00010395,103490.0,103480.0,0.36267]
[1762698963835,0.09674575,103490.0,103480.0,0.36267]
[1762698964241,0.81006575,103490.0,103480.0,0.36267]
[1762698964641,0.83392486,103490.0,103480.0,0.36267]
[1762698964839,0.83392486,103490.0,103480.0,0.08239]
[1762698965247,0.81006575,103490.0,103480.0,0.36267]
[1762698965547,0.81006575,103490.0,103480.0,0.08239]
[1762698965948,0.0966538,103480.0,103470.0,0.14058]
[1762698966244,0.45754845,103490.0,103480.0,0.08239]
[1762698966451,0.81002845,103490.0,103480.0,0.22297]
[1762698966642,0.85831134,103490.0,103480.0,0.36267]
[1762698966943,0.36090395,103490.0,103480.0,0.36267]
[1762698967150,0.45754575,103490.0,103480.0,0.36267]
[1762698967343,0.45754575,103490.0,103480.0,0.08239]
[1762698968942,0.45754575,103490.0,103480.0,0.36267]
[1762698969143,0.45754525,103490.0,103480.0,0.36267]
[1762698969341,0.00010395,103490.0,103480.0,0.36267]
[1762698969642,0.36090395,103490.0,103480.0,0.36267]
[1762698969842,0.00010395,103490.0,103480.0,0.36267]
[1762698970347,0.45754525,103490.0,103480.0,0.36267]
[1762698970544,0.46914525,103490.0,103480.0,0.36267]
[1762698970743,0.61498248,103490.0,103480.0,0.36267]
[1762698971939,0.37250395,103490.0,103480.0,0.36267]
[1762698972137,0.46914525,103490.0,103480.0,0.22297]
[1762698972342,0.80998525,103490.0,103480.0,0.36267]
[1762698972745,0.45754525,103490.0,103480.0,0.36267]
[1762698972952,0.45754525,103490.0,103480.0,0.08239]
[1762698973249,0.60174237,103490.0,103480.0,0.08239]
[1762698973445,0.60174237,103490.0,103480.0,0.36267]
[1762698973446,0.45754525,103490.0,103480.0,0.36267]
[1762698974744,0.45754525,103490.0,103480.0,0.08239]
[1762698974938,0.45754525,103490.0,103480.0,0.22297]
[1762698975138,0.45754525,103490.0,103480.0,0.36267]
[1762698975352,0.26417176,103490.0,103480.0,0.36267]
[1762698975945,0.0966413,103490.0,103480.0,0.44319]
[1762698976146,0.4574413,103490.0,103480.0,0.08239]
[1762698976547,0.48121261,103490.0,103480.0,0.08239]
[1762698977351,0.83361464,103490.0,103480.0,0.08239]
[1762698977848,0.0966507,103480.0,103470.0,0.57784668]
[1762698978043,0.09666,103470.0,103460.0,0.08239]
[1762698978249,0.45746,103470.0,103460.0,0.08239]
[1762698978447,0.95383002,103470.0,103460.0,0.36267]
[1762698978952,0.09666,103470.0,103460.0,0.72347]
[1762698979358,0.80996139,103480.0,103470.0,0.1397]
[1762698979549,0.80996139,103480.0,103470.0,0.28028]
[1762698979754,0.95453545,103480.0,103470.0,0.28028]
[1762698979955,0.60217545,103480.0,103470.0,0.28028]
[1762698980156,0.95453545,103480.0,103470.0,0.28028]
[1762698980353,0.80995559,103480.0,103470.0,0.28028]
[1762698980754,0.45759559,103480.0,103470.0,0.28028]
[1762698981354,0.45759559,103480.0,103470.0,0.35666164]
[1762698983655,0.00014489,103480.0,103470.0,0.71746164]
[1762698983859,0.09679559,103480.0,103470.0,0.71746164]
[1762698984064,0.00014489,103480.0,103470.0,0.71746164]
[1762698985064,0.09679559,103480.0,103470.0,0.71746164]
[1762698985265,0.00014489,103480.0,103470.0,0.71746164]
[1762698985463,0.09679559,103480.0,103470.0,0.71746164]
[1762698985764,0.00014489,103480.0,103470.0,0.71746164]
[1762698986350,0.8097171,103500.0,103470.0,0.71746164]
[1762698986566,0.4574371,103500.0,103490.0,0.27432]
[1762698987060,0.0525733,103510.0,103500.0,0.3569]
[1762698987256,0.0525733,103510.0,103500.0,0.7177]
[1762698987452,3.3e-06,103510.0,103500.0,0.7177]
[1762698987661,0.00014489,103520.0,103510.0,0.27728]
[1762698987862,0.00014489,103520.0,103510.0,0.71597771]
[1762698988762,0.4574005,103540.0,103530.0,0.27728]
[1762698988955,0.5101815,103550.0,103540.0,0.3569]
[1762698989155,0.53380649,103550.0,103540.0,0.3569]
[1762698989463,0.4577001,103550.0,103540.0,0.3569]
[1762698994468,0.7423501,103550.0,103540.0,0.38254157]
[1762698995170,0.64576,103550.0,103540.0,0.38254157]
[1762698995562,0.7423454,103550.0,103540.0,0.38254157]
[1762698997564,0.7423454,103550.0,103540.0,0.15938157]
[1762698997869,0.7423454,103550.0,103540.0,0.02564157]
[1762698998070,0.7423454,103550.0,103540.0,0.30292157]
[1762699001667,0.7423454,103550.0,103540.0,0.38254157]
[1762699002268,0.64576,103550.0,103540.0,0.38254157]
[1762699002474,0.50674,103550.0,103540.0,0.38254157]
[1762699002775,0.36111,103550.0,103540.0,0.38254157]
[1762699003973,0.36111,103550.0,103540.0,0.47913627]
[1762699004175,0.36094489,103560.0,103550.0,0.27728]
[1762699004374,0.36094489,103560.0,103550.0,0.30285353]
[1762699004764,0.00014489,103560.0,103550.0,0.76023893]
[1762699004977,0.00014489,103560.0,103550.0,0.79442769]
[1762699005276,0.00014489,103560.0,103550.0,0.67226876]
[1762699005471,0.00014489,103560.0,103550.0,0.76885416]
[1762699005677,0.4573603,103580.0,103550.0,0.8654212]
[1762699005877,0.7420103,103580.0,103570.0,0.27728]
[1762699006073,0.64545,103580.0,103570.0,0.27728]
[1762699006772,0.28465,103580.0,103570.0,0.27728]
[1762699006981,0.28465,103580.0,103570.0,0.66364106]
[1762699007479,0.78452707,103590.0,103580.0,0.35732]
[1762699007869,0.4553974,103580.0,103570.0,0.10469575]
[1762699008075,0.8070374,103580.0,103570.0,0.10467772]
[1762699008384,1.5286374,103580.0,103570.0,0.07913469]
[1762699008674,0.9830767,103570.0,103560.0,9e-08]
[1762699008980,0.4527147,103540.0,103530.0,0.00012255]
[1762699009174,1.1743147,103540.0,103530.0,0.00012255]
[1762699009880,1.1743147,103540.0,103530.0,0.27358255]
[1762699010974,1.0931047,103540.0,103530.0,0.27358255]
[1762699011176,0.9516247,103540.0,103530.0,0.27358255]
[1762699011376,0.7323047,103540.0,103530.0,0.29912558]
[1762699011974,0.7323047,103540.0,103530.0,0.33331434]
[1762699012182,0.7323047,103540.0,103530.0,0.29912558]
[1762699012386,0.7323047,103540.0,103530.0,0.30777131]
[1762699012677,0.7323047,103540.0,103530.0,0.3852213]
[1762699012883,0.63571,103540.0,103530.0,0.3852213]
[1762699013275,0.49423,103540.0,103530.0,0.3852213]
[1762699013476,0.5908247,103540.0,103530.0,0.3852213]
[1762699014284,0.49423,103540.0,103530.0,0.43650444]
[1762699014484,0.5908247,103540.0,103530.0,0.43650444]
[1762699014685,0.7323047,103540.0,103530.0,0.3852213]
[1762699015075,0.3608,103540.0,103530.0,0.3852213]
[1762699015277,0.63585489,103550.0,103540.0,0.35732]
[1762699015482,0.73244029,103550.0,103540.0,0.39158825]
[1762699015783,0.63585489,103550.0,103540.0,0.39158825]
[1762699015983,0.63585489,103550.0,103540.0,0.44287139]
[1762699016485,0.63585489,103550.0,103540.0,0.40860314]
[1762699016887,0.00014489,103550.0,103540.0,0.40860314]
[1762699017383,0.00014489,103550.0,103540.0,0.71812]
[1762699017985,0.24286029,103550.0,103540.0,0.71812]
[1762699018179,0.00014489,103550.0,103540.0,0.71812]
[1762699018984,0.00014489,103550.0,103540.0,0.7865108]
[1762699020581,0.09673029,103550.0,103540.0,0.7865108]
[1762699021381,0.00014489,103550.0,103540.0,0.7865108]
[1762699023689,0.3608,103560.0,103540.0,1.15273106]
[1762699023893,0.3608,103560.0,103550.0,0.27472]
[1762699024088,0.7431067,103570.0,103560.0,0.353]
[1762699024296,0.7431067,103570.0,103560.0,0.4044354]
[1762699025484,0.3823067,103570.0,103560.0,0.4044354]
[1762699025683,0.7431067,103570.0,103560.0,0.4044354]
[1762699028195,0.3823067,103570.0,103560.0,0.4044354]
[1762699028395,0.81557849,103580.0,103570.0,0.27472]
[1762699028694,0.81557849,103580.0,103570.0,0.30896622]
[1762699029297,0.81557849,103580.0,103570.0,0.18254622]
[1762699030199,0.81557849,103580.0,103570.0,0.26083133]
[1762699030695,0.81557849,103580.0,103570.0,0.39969133]
[1762699031494,0.81557849,103580.0,103570.0,0.53555133]
[1762699031792,0.64668489,103580.0,103570.0,0.68355343]
[1762699031993,0.50707489,103580.0,103570.0,0.64930721]
[1762699032193,0.36094489,103580.0,103570.0,0.59787181]
[1762699032393,0.74324229,103580.0,103570.0,0.50130511]
[1762699032587,0.74324229,103580.0,103570.0,0.5526443]
[1762699032893,0.80747229,103580.0,103570.0,0.2608205]
[1762699033595,1.55145819,103580.0,103570.0,0.03423539]
[1762699033801,1.55145819,103580.0,103570.0,0.02568141]
[1762699034287,0.459506,103560.0,103550.0,0.03438028]
[1762699034488,1.181106,103560.0,103550.0,0.03438028]
[1762699035089,1.181106,103560.0,103550.0,0.17324028]
[1762699035289,1.181106,103560.0,103550.0,0.30910028]
[1762699035495,0.3608,103560.0,103550.0,0.42278948]
[1762699035692,0.7431125,103570.0,103560.0,0.353]
[1762699035889,0.28574,103570.0,103560.0,0.48380613]
[1762699036089,0.74324229,103580.0,103570.0,0.27472]
[1762699036294,0.74324229,103580.0,103570.0,0.38450875]
[1762699036494,0.74324229,103580.0,103570.0,0.40162546]
[1762699036495,0.14627489,103580.0,103570.0,0.40162546]
[1762699036698,0.60363229,103580.0,103570.0,0.40162546]
[1762699036898,0.74324229,103580.0,103570.0,0.40162546]
[1762699037095,0.28588489,103580.0,103570.0,0.40162546]
[1762699037500,0.38244229,103580.0,103570.0,0.40162546]
[1762699037900,0.00014489,103580.0,103570.0,0.40162546]
[1762699039398,0.09670229,103580.0,103570.0,0.40162546]
[1762699039589,0.00014489,103580.0,103570.0,0.40162546]
[1762699040392,0.00014489,103580.0,103570.0,0.35028627]
[1762699040790,0.00014489,103580.0,103570.0,0.71108627]
[1762699040990,0.00014489,103580.0,103570.0,0.90420136]
[1762699041291,0.00014489,103580.0,103570.0,1.14556136]
[1762699041604,0.64654,103610.0,103600.0,0.353]
[1762699041799,0.64654,103610.0,103600.0,0.38720723]
[1762699042104,0.7430694,103610.0,103600.0,0.38720723]
[1762699042297,0.5413737,103620.0,103600.0,0.38720723]
[1762699042502,0.8271137,103620.0,103610.0,0.27472]
[1762699042696,0.8271137,103620.0,103610.0,0.30892723]
[1762699042897,0.74319599,103630.0,103620.0,0.27472]
[1762699043098,0.74319599,103630.0,103620.0,0.38720723]
[1762699043099,0.00014489,103630.0,103620.0,0.38720723]
[1762699043399,0.38239569,103630.0,103620.0,0.40431085]
[1762699043597,0.74319569,103630.0,103620.0,0.36016845]
[1762699043992,0.74319569,103630.0,103620.0,0.32603085]
[1762699044199,0.74319569,103630.0,103620.0,0.30883391]
[1762699044401,0.74319569,103630.0,103620.0,0.03411391]
[1762699044905,0.3822601,103620.0,103610.0,0.30883391]
[1762699045205,0.7430601,103620.0,103610.0,0.30883391]
[1762699046505,0.7430601,103620.0,103610.0,0.38512769]
[1762699049909,0.7430601,103620.0,103610.0,0.53342769]
[1762699050913,0.7861201,103620.0,103610.0,0.53342769]
[1762699051213,0.7861201,103620.0,103610.0,0.25870769]
[1762699051506,0.7861201,103620.0,103600.0,0.1825588]
[1762699051507,0.3486994,103610.0,103600.0,0.1825588]
[1762699051706,0.7094994,103610.0,103600.0,0.14844489]
[1762699051911,1.0598194,103610.0,103600.0,0.14844489]
[1762699053309,1.20480364,103610.0,103600.0,0.14844489]
[1762699053812,0.3487461,103560.0,103550.0,0.31618085]
[1762699054007,0.3487554,103550.0,103540.0,0.05131085]
[1762699054207,0.7095554,103550.0,103540.0,0.26487]
[1762699054614,0.3487647,103540.0,103530.0,0.3163034]
[1762699054804,0.7095647,103540.0,103530.0,0.3163034]
[1762699055003,0.7095647,103540.0,103530.0,0.12893749]